fUSD/lending_fUSD_20240625
["ID","MTS","AMOUNT","RATE_DAILY","PERIOD"]
[330355555,1719312640964,-3207.735,0.000112,2]
[330355556,1719312640975,-2837.74696614,0.000112,2]
[330355557,1719312640987,-11915.571802,0.000112,2]
[330355558,1719312640998,-16465.768198,0.000112,2]
[330355559,1719312641009,-3045.14292529,0.000112,2]
[330355560,1719312641074,-4745.42799594,0.000112,2]
[330355561,1719312641084,-478.52362638,0.00011776,2]
[330355573,1719312643647,-2561.54407362,0.00011776,2]
[330355574,1719312643658,-15420.55758448,0.00011799,2]
[330355575,1719312643668,-4988.81650323,0.000118,2]
[330355576,1719312643679,-150.0,0.00011808,2]
[330355577,1719312643688,-250.0,0.0001184,2]
[330355578,1719312643698,-944.25093946,0.00011977,2]
[330355579,1719312643712,-250.0,0.00012078,2]
[330355580,1719312643722,-184.96,0.00012092,2]
[330355581,1719312643733,-1000.01,0.00012108,2]
[330355582,1719312643743,-23900.0,0.00012113,2]
[330355583,1719312643760,-520.06850352,0.00012125,2]
[330355584,1719312643770,-999.99,0.00012126,2]
[330355585,1719312643780,-499.99,0.00012126,2]
[330355586,1719312643792,-753.59338141,0.00012279,2]
[330355587,1719312643804,-661.67965342,0.0001228,2]
[330355588,1719312643814,-1340.45084067,0.0001228,2]
[330355589,1719312643823,-556.71,0.00012496,2]
[330355590,1719312643832,-390.67,0.00012733,2]
[330355591,1719312643842,-390.67,0.00012768,2]
[330355592,1719312643852,-390.67,0.00012803,2]
[330355593,1719312643862,-390.67,0.00012838,2]
[330355594,1719312643871,-390.67,0.00012873,2]
[330355595,1719312643881,-390.67,0.00012908,2]
[330355596,1719312643891,-390.67,0.00012942,2]
[330355597,1719312643900,-390.67,0.00012977,2]
[330355598,1719312643910,-390.67,0.00013012,2]
[330355599,1719312643919,-390.67,0.00013047,2]
[330355600,1719312643928,-390.67,0.00013082,2]
[330355601,1719312643938,-390.67,0.00013117,2]
[330355602,1719312643947,-390.67,0.00013152,2]
[330355603,1719312643956,-390.67,0.00013187,2]
[330355604,1719312643966,-390.67,0.00013222,2]
[330355605,1719312643976,-390.67,0.00013257,2]
[330355606,1719312643985,-390.67,0.00013292,2]
[330355607,1719312643994,-390.67,0.00013327,2]
[330355608,1719312644008,-390.67,0.00013362,2]
[330355609,1719312644018,-390.67,0.00013397,2]
[330355610,1719312644028,-164.57,0.00013699,2]
[330355611,1719312644038,-291.87,0.00013699,2]
[330355612,1719312644048,-1273.34356107,0.0001379,2]
[330355613,1719312644057,-1273.34356103,0.0001379,2]
[330355614,1719312644067,-3620.12322409,0.00013799,2]
[330355615,1719312644076,-3620.12322403,0.00013799,2]
[330355616,1719312644086,-1994.58356352,0.0001387,2]
[330355617,1719312644095,-2500.0,0.00013899,2]
[330355618,1719312644105,-7500.0,0.000139,2]
[330355619,1719312644115,-2240.23671033,0.00013914,2]
[330355620,1719312644124,-737.98964315,0.00013999,5]
[330355621,1719312644134,-187471.64627893,0.00014,2]
[330355622,1719312644147,-3262.44251899,0.00014,2]
[330355625,1719312644408,-3219.5262,0.00014,2]
[330355628,1719312648859,-2779.0312617,0.00014,2]
[330355629,1719312649270,-3212.13211724,0.00014,2]
[330355630,1719312996243,5918.31128481,0.00010993,2]
[330355635,1719313464601,158.9647594,0.00010975,2]
[330355658,1719313833038,-180.03775301,0.0001106,2]
[330355660,1719313833047,-203.87981237,0.0001106,2]
[330355662,1719313833059,-158.76089464,0.0001106,2]
[330355665,1719313833068,-3023.35359891,0.0001106,2]
[330355668,1719313833078,-363.1214558,0.00011061,2]
[330355671,1719313833089,-328.885,0.00011061,2]
[330355673,1719313833101,-2722.68198657,0.00011061,2]
[330355680,1719313839409,-10512.01233006,0.00011061,2]
[330355681,1719313839424,-1493.85681205,0.00011061,2]
[330355682,1719313839435,-630.16945427,0.00011061,2]
[330355683,1719313839446,-155.0,0.00011061,2]
[330355684,1719313839456,-2828.45274486,0.00011061,2]
[330355685,1719313839468,-532.41,0.00012107,2]
[330355686,1719313839479,-1627.92964949,0.00012368,2]
[330355687,1719313839488,-20017.12626268,0.000138,2]
[330355688,1719313839503,-1197.76674134,0.000138,2]
[330355689,1719313839516,-264.24,0.000138,2]
[330355690,1719313839528,-1994.87656404,0.000138,2]
[330355695,1719313841246,-268.477121,0.000138,2]
[330355697,1719313841259,-760.97318247,0.000138,2]
[330355698,1719313841271,-38345.4209184,0.000138,2]
[330355699,1719313841283,-2238.9890314,0.000138,2]
[330355700,1719313841295,-587.05346841,0.000138,2]
[330355701,1719313841307,-265.75542385,0.000138,2]
[330355742,1719313843811,-9538.41198641,0.000138,2]
[330355743,1719313843821,-1410.38514555,0.000138,2]
[330355744,1719313843831,-3544.57307158,0.000138,2]
[330355745,1719313843840,-14929.43624541,0.0001386,2]
[330355746,1719313843850,-7841.9619,0.000139,2]
[330355747,1719313843859,-1000.0,0.000139,2]
[330355748,1719313843868,-6950.4756,0.000139,2]
[330355749,1719313843878,-157.02239902,0.000139,2]
[330355750,1719313843887,-22467.9357,0.000139,2]
[330355751,1719313843897,-7500.0,0.000139,2]
[330355752,1719313843906,-2500.0,0.000139,2]
[330355753,1719313843915,-190.85369923,0.000139,2]
[330355754,1719313843924,-329.5404875,0.000139,2]
[330355755,1719313843934,-160.13713916,0.00013925,2]
[330355756,1719313843944,-11551.86,0.00013925,2]
[330355757,1719313843953,-3019.88,0.00013925,2]
[330355758,1719313843963,-499.99,0.00013925,2]
[330355759,1719313843973,-195.76537333,0.0001399,2]
[330355760,1719313843982,-349.70491421,0.00013999,5]
[330355761,1719313843992,-316070.88209533,0.00014,2]
[330355762,1719313844453,-602.9136204,0.00014,2]
[330355764,1719313846738,-71086.69190718,0.00014,2]
[330355766,1719313846750,-2525.25727382,0.00014,2]
[330355815,1719313847278,-2869.07369635,0.00014,2]
[330355817,1719313847290,-53677.43198243,0.00014,2]
[330355819,1719313847302,-523.98031464,0.00014,2]
[330355845,1719314043288,220.39223526,0.00010959,2]
[330355846,1719314048271,220.39223526,0.0001096,2]
[330355847,1719314058712,155.0,0.00010959,2]
[330355848,1719314100388,2977.93589618,0.00010958,2]
[330355849,1719314168773,331.62401396,0.00010955,2]
[330355850,1719314302138,538.97,0.00010175,2]
[330355851,1719314422309,-977.44,0.00016877,14]
[330355852,1719314875711,512.02,0.00010175,2]
[330355857,1719315032046,-155.40311246,0.00011031,2]
[330355858,1719315032056,-155.0,0.00011032,2]
[330355859,1719315032066,-2988.81070995,0.00011051,2]
[330355860,1719315032078,-34.54288896,0.00011051,2]
[330355861,1719315032089,-15420.55758448,0.00011052,2]
[330355862,1719315032099,-3107.31885347,0.00011052,2]
[330355863,1719315032109,-209.03096185,0.00011775,2]
[330355864,1719315032119,-2004.4104095,0.00012333,2]
[330355865,1719315032128,-512.02,0.00012438,2]
[330355866,1719315032138,-250.0,0.00012949,2]
[330355867,1719315032148,-12699.82215347,0.00012987,2]
[330355868,1719315032160,-581.06799919,0.00012987,2]
[330355869,1719315032363,-10619.10984734,0.00012987,2]
[330355870,1719315032373,-250.0,0.00013231,2]
[330355871,1719315032384,-299.99,0.00013231,2]
[330355872,1719315032394,-499.99,0.00013698,2]
[330355873,1719315032403,-243.22,0.00013699,2]
[330355874,1719315032412,-384.32645906,0.00013702,2]
[330355875,1719315032424,-1258.785,0.000138,2]
[330355876,1719315032436,-243.81568833,0.000138,2]
[330355877,1719315032445,-1285.28069769,0.000138,2]
[330355878,1719315032455,-300.0,0.000138,5]
[330355879,1719315032464,-3773.74280751,0.000138,2]
[330355880,1719315032741,-2376.06489013,0.00013814,2]
[330355881,1719315032752,-17351.72761448,0.00013815,2]
[330355882,1719315032762,-62550.389,0.00013825,2]
[330355883,1719315032774,-1102.81224386,0.00013836,2]
[330355884,1719315032785,-415.07899166,0.00013847,2]
[330355885,1719315032796,-3236.01137135,0.00013899,2]
[330355886,1719315032806,-245000.0,0.000139,2]
[330355887,1719315032816,-2527.26296391,0.000139,2]
[330355888,1719315032826,-165.52799715,0.000139,2]
[330355889,1719315032836,-762.1867,0.000139,2]
[330355890,1719315032848,-700.0,0.000139,5]
[330355891,1719315032859,-329.54048749,0.000139,2]
[330355892,1719315032869,-155.27735735,0.00013925,2]
[330355893,1719315032881,-150.99,0.00013954,2]
[330355894,1719315032891,-184.96,0.00013973,2]
[330355895,1719315032901,-192.59715905,0.0001399,2]
[330355896,1719315032911,-256120.44340514,0.00014,2]
[330355897,1719315032924,-31731.66379348,0.00014,2]
[330355898,1719315033301,-872.70999767,0.00014,2]
[330355899,1719315033313,-1968.22715216,0.00014,2]
[330355909,1719315034468,-944316.30575649,0.00014,2]
[330355910,1719315034478,-453.4324,0.00014,2]
[330355911,1719315034488,-163.42,0.00014025,2]
[330355912,1719315034498,-1000.0,0.00014097,2]
[330355913,1719315034508,-1815.42,0.00014384,2]
[330355914,1719315034519,-512.02,0.00014702,2]
[330355915,1719315034533,-2527.26296381,0.00014717,2]
[330355916,1719315034543,-1285.28069765,0.0001481,2]
[330355917,1719315034554,-3773.74280751,0.0001481,2]
[330355918,1719315034566,-163.42,0.0001496,2]
[330355919,1719315034577,-2399.01222683,0.00015,2]
[330355920,1719315034587,-3974.20879947,0.00015,2]
[330355921,1719315034598,-243.81568828,0.00015099,2]
[330355922,1719315034608,-2527.26296381,0.00015535,2]
[330355923,1719315034620,-2243.97882411,0.00015778,2]
[330355924,1719315034630,-1340.45084067,0.00015819,2]
[330355925,1719315034641,-1285.28069765,0.0001582,2]
[330355926,1719315034651,-3773.74280751,0.0001582,2]
[330355927,1719315034661,-1000.0,0.00015859,2]
[330355928,1719315034672,-163.42,0.00015895,2]
[330355929,1719315034683,-819.0,0.000162,3]
[330355930,1719315034692,-3978.0,0.000163,3]
[330355931,1719315034701,-2527.26296381,0.00016352,2]
[330355932,1719315034712,-243.81568828,0.00016397,2]
[330355933,1719315034723,-1026.0,0.000168,2]
[330355934,1719315034733,-163.42,0.0001683,2]
[330355935,1719315034744,-1285.28069765,0.0001683,2]
[330355936,1719315034753,-3773.74280751,0.0001683,2]
[330355937,1719315034763,-151.0,0.00016865,2]
[330355938,1719315034772,-151.0,0.00016865,2]
[330355939,1719315034782,-18911.1499117,0.00016865,2]
[330355940,1719315034792,-151.0,0.00016865,2]
[330355941,1719315034802,-151.0,0.00016865,2]
[330355942,1719315034813,-89575.9390944,0.00016865,2]
[330355943,1719315034824,-387.669446,0.00016865,2]
[330355944,1719315034834,-387.669446,0.00016865,2]
[330355945,1719315034855,-151.0,0.00016865,2]
[330355946,1719315034868,-151.0,0.00016865,2]
[330355947,1719315034878,-151.0,0.00016865,2]
[330355948,1719315034890,-27230.27163246,0.00016877,2]
[330355949,1719315034901,-1100.0,0.000169,6]
[330355950,1719315034912,-512.02,0.00016966,2]
[330355951,1719315034922,-200.027748,0.00017,2]
[330355952,1719315034934,-151.0,0.00017169,2]
[330355953,1719315034945,-2527.26296381,0.00017169,2]
[330355954,1719315034955,-418.51,0.00017233,2]
[330355955,1719315034966,-1697.27,0.00017233,2]
[330355956,1719315034977,-418.51,0.00017233,2]
[330355957,1719315034987,-263.56,0.00017233,2]
[330355958,1719315034998,-10000.0,0.0001726,2]
[330355959,1719315035009,-202.05047868,0.00017533,2]
[330355960,1719315035020,-1018.0,0.000176,2]
[330355961,1719315035358,-2373.11184045,0.0001762,2]
[330355962,1719315035369,-1000.0,0.00017621,2]
[330355963,1719315035380,-243.81568828,0.00017696,2]
[330355964,1719315035391,-2373.11184045,0.00017807,2]
[330355965,1719315035401,-1440.0,0.00017839,2]
[330355966,1719315035412,-1285.28069765,0.0001784,2]
[330355967,1719315035423,-3773.74280751,0.0001784,2]
[330355968,1719315035435,-1248.93094158,0.00017985,2]
[330355969,1719315035445,-297.24474814,0.00017985,2]
[330355970,1719315035455,-2527.26296381,0.00017986,2]
[330355971,1719315035466,-528.1739353,0.00018012,2]
[330355972,1719315035476,-216.26835515,0.00018014,2]
[330355973,1719315035486,-150.0,0.00018017,2]
[330355974,1719315035497,-207.71704746,0.00018394,2]
[330355975,1719315035507,-329.54048749,0.00018395,2]
[330355976,1719315035517,-155.27735734,0.00018408,2]
[330355977,1719315035531,-747.0,0.000185,2]
[330355978,1719315035541,-328.50066625,0.00018564,2]
[330355979,1719315035552,-354.0177653,0.00018565,2]
[330355980,1719315035564,-166.99965787,0.00018802,2]
[330355981,1719315035577,-12750.87079777,0.00018803,2]
[330355982,1719315035588,-387.669446,0.00018803,2]
[330355983,1719315035599,-387.669446,0.00018803,2]
[330355984,1719315035612,-158.73260561,0.00018803,2]
[330355985,1719315035623,-151.0,0.00018803,2]
[330355986,1719315035635,-151.0,0.00018803,2]
[330355987,1719315035646,-2527.26296381,0.00018804,2]
[330355988,1719315035657,-151.0,0.00018804,2]
[330355989,1719315035669,-151.0,0.00018804,2]
[330355990,1719315035680,-206.0,0.0001883,2]
[330355991,1719315035692,-155.04064792,0.00018849,2]
[330355992,1719315035702,-1285.28069765,0.0001885,2]
[330355993,1719315035716,-3773.74280751,0.0001885,2]
[330355994,1719315035728,-243.81568828,0.00018994,2]
[330355995,1719315035738,-3080.48635217,0.00019,2]
[330355996,1719315035749,-453.43241,0.00019,2]
[330355997,1719315035760,-200.0,0.00019,2]
[330355998,1719315035770,-440.3219065,0.00019178,2]
[330355999,1719315035781,-315.40992538,0.00019178,2]
[330356000,1719315035792,-2362.36,0.00019178,2]
[330356001,1719315035803,-2362.36,0.00019178,2]
[330356002,1719315035814,-2362.36,0.00019178,2]
[330356003,1719315035825,-2362.36,0.00019178,2]
[330356004,1719315035835,-2362.36,0.00019178,2]
[330356005,1719315035847,-2362.36,0.00019178,2]
[330356006,1719315035858,-2362.36,0.00019178,2]
[330356007,1719315035869,-2362.36,0.00019178,2]
[330356008,1719315035880,-2362.36,0.00019178,2]
[330356009,1719315035891,-2362.36,0.00019178,2]
[330356010,1719315035902,-2362.36,0.00019178,2]
[330356011,1719315035913,-2362.36,0.00019178,2]
[330356012,1719315035924,-2362.36,0.00019178,2]
[330356013,1719315035935,-2362.36,0.00019178,2]
[330356014,1719315035944,-2362.36,0.00019178,2]
[330356015,1719315035954,-2362.36,0.00019178,2]
[330356016,1719315035964,-2362.36,0.00019178,2]
[330356017,1719315035974,-2362.36,0.00019178,2]
[330356018,1719315035984,-2362.36,0.00019178,2]
[330356019,1719315035995,-2362.36,0.00019178,2]
[330356020,1719315036006,-2362.36,0.00019178,2]
[330356021,1719315036016,-2362.36,0.00019178,2]
[330356022,1719315036030,-2362.36,0.00019178,2]
[330356023,1719315036043,-2362.37174744,0.00019178,2]
[330356024,1719315036054,-500.0,0.00019178,2]
[330356025,1719315036064,-327.08426934,0.00019178,2]
[330356026,1719315036075,-151.0,0.00019178,2]
[330356027,1719315036085,-250.0,0.00019178,2]
[330356028,1719315036095,-243.22,0.00019178,2]
[330356029,1719315036106,-512.02,0.0001923,2]
[330356030,1719315036116,-1000.0,0.00019383,2]
[330356031,1719315036127,-151.0,0.00019416,2]
[330356032,1719315036138,-2527.26296381,0.00019621,2]
[330356033,1719315036149,-206.0,0.0001966,2]
[330356034,1719315036161,-527.79,0.00019699,2]
[330356035,1719315036171,-1285.28069765,0.0001986,2]
[330356036,1719315036183,-3773.74280751,0.0001986,2]
[330356037,1719315036194,-1059.37192108,0.00019937,2]
[330356038,1719315036204,-600.0,0.00019999,2]
[330356039,1719315036215,-500.0,0.00019999,2]
[330356040,1719315036225,-2176.9225117,0.0002,2]
[330356041,1719315036236,-54000.0,0.0002,7]
[330356042,1719315036246,-754.77762835,0.0002,10]
[330356043,1719315036256,-326.85831765,0.0002,2]
[330356044,1719315036266,-461.29191155,0.0002,2]
[330356045,1719315036276,-187.98950522,0.0002,2]
[330356046,1719315036286,-231.68652451,0.0002,2]
[330356047,1719315036296,-151.0,0.0002,2]
[330356048,1719315036306,-504.34111373,0.0002,2]
[330356049,1719315036316,-151.0,0.0002,2]
[330356050,1719315036326,-151.0,0.0002,2]
[330356051,1719315036336,-387.669446,0.0002,2]
[330356052,1719315036346,-33819.77226976,0.0002,2]
[330356053,1719315036357,-387.669446,0.0002,2]
[330356054,1719315036367,-151.0,0.0002,2]
[330356055,1719315036378,-151.0,0.0002,2]
[330356056,1719315036389,-264.74651809,0.0002,2]
[330356057,1719315036399,-151.0,0.00020012,2]
[330356058,1719315036410,-2016.42329016,0.000202,2]
[330356059,1719315036420,-1500.0,0.00020267,2]
[330356060,1719315036430,-243.81568828,0.00020293,2]
[330356061,1719315036440,-1003.2015713,0.00020384,2]
[330356062,1719315036451,-1041.69305469,0.00020384,2]
[330356063,1719315036461,-151.0,0.000204,2]
[330356064,1719315036471,-151.0,0.000204,2]
[330356065,1719315036481,-151.0,0.000204,2]
[330356066,1719315036491,-387.669446,0.000204,2]
[330356067,1719315036501,-387.669446,0.000204,2]
[330356068,1719315036510,-151.0,0.000204,2]
[330356069,1719315036521,-161.300092,0.000204,2]
[330356070,1719315036536,-114177.98671785,0.000204,2]
[330356071,1719315036546,-2527.26296381,0.00020438,2]
[330356072,1719315036556,-150.0,0.00020467,2]
[330356073,1719315036567,-150.0,0.00020468,2]
[330356074,1719315036577,-206.0,0.0002048,2]
[330356075,1719315036586,-150.0,0.00020485,2]
[330356076,1719315036596,-150.0,0.00020489,2]
[330356077,1719315036609,-150.0,0.00020494,2]
[330356078,1719315036620,-150.0,0.00020502,2]
[330356079,1719315036630,-150.0,0.00020504,2]
[330356080,1719315036640,-150.0,0.00020513,2]
[330356081,1719315036650,-150.0,0.00020524,2]
[330356082,1719315036660,-1500.0,0.0002053,2]
[330356083,1719315036671,-150.0,0.00020544,2]
[330356084,1719315036683,-150.0,0.00020544,2]
[330356085,1719315036694,-150.0,0.00020545,2]
[330356086,1719315036704,-600.0,0.00020547,2]
[330356087,1719315036715,-500.0,0.00020547,2]
[330356088,1719315036725,-150.0,0.00020552,2]
[330356089,1719315036735,-150.0,0.00020565,2]
[330356090,1719315036745,-150.0,0.00020568,2]
[330356091,1719315036755,-150.0,0.00020576,2]
[330356092,1719315036765,-150.0,0.00020577,2]
[330356093,1719315036775,-150.0,0.0002058,2]
[330356094,1719315036784,-150.0,0.00020582,2]
[330356095,1719315036794,-150.0,0.00020592,2]
[330356096,1719315036804,-151.0,0.00020607,2]
[330356097,1719315036814,-150.0,0.00020609,2]
[330356098,1719315036824,-150.0,0.00020621,2]
[330356099,1719315036834,-150.0,0.00020628,2]
[330356100,1719315036843,-150.0,0.00020629,2]
[330356101,1719315036853,-150.0,0.00020635,2]
[330356102,1719315036865,-150.0,0.00020652,2]
[330356103,1719315036880,-150.73591302,0.00020658,2]
[330356104,1719315036890,-150.0,0.00020663,2]
[330356105,1719315036900,-150.0,0.00020668,2]
[330356106,1719315036909,-150.0,0.00020676,2]
[330356107,1719315036919,-150.0,0.00020679,2]
[330356108,1719315036931,-301.6052861,0.00020681,2]
[330356109,1719315036941,-150.0,0.00020681,2]
[330356110,1719315036951,-153.483176,0.00020685,2]
[330356111,1719315036961,-151.0,0.00020685,2]
[330356112,1719315036971,-387.669446,0.00020685,2]
[330356113,1719315036981,-387.669446,0.00020685,2]
[330356114,1719315036991,-151.0,0.00020685,2]
[330356115,1719315037001,-104966.38951204,0.00020685,2]
[330356116,1719315037011,-150.0,0.00020688,2]
[330356117,1719315037021,-150.0,0.0002069,2]
[330356118,1719315037032,-150.0,0.00020692,2]
[330356119,1719315037044,-150.0,0.00020693,2]
[330356120,1719315037056,-150.0,0.00020699,2]
[330356121,1719315037066,-266.59342864,0.000207,2]
[330356122,1719315037078,-1099.31984633,0.000207,2]
[330356123,1719315037089,-150.0,0.00020708,2]
[330356124,1719315037099,-150.0,0.00020712,2]
[330356125,1719315037110,-150.0,0.00020715,2]
[330356126,1719315037121,-150.0,0.00020715,2]
[330356127,1719315037132,-150.0,0.00020715,2]
[330356128,1719315037143,-150.0,0.00020723,2]
[330356129,1719315037155,-150.0,0.00020724,2]
[330356130,1719315037166,-150.0,0.00020724,2]
[330356131,1719315037177,-150.0,0.00020725,2]
[330356132,1719315037196,-150.0,0.00020726,2]
[330356133,1719315037207,-150.0,0.00020729,2]
[330356134,1719315037219,-150.0,0.00020729,2]
[330356135,1719315037231,-150.0,0.00020729,2]
[330356136,1719315037242,-208.14980787,0.00020732,2]
[330356137,1719315037253,-300.0,0.00020734,2]
[330356138,1719315037263,-150.0,0.00020737,2]
[330356139,1719315037273,-150.0,0.00020742,2]
[330356140,1719315037284,-150.0,0.00020746,2]
[330356141,1719315037294,-150.0,0.00020752,2]
[330356142,1719315037305,-150.0,0.00020755,2]
[330356143,1719315037315,-150.0,0.00020757,2]
[330356144,1719315037326,-150.0,0.00020758,2]
[330356145,1719315037337,-150.0,0.00020761,2]
[330356146,1719315037348,-150.0,0.00020762,2]
[330356147,1719315037359,-150.0,0.00020763,2]
[330356148,1719315037370,-600.0,0.00020768,2]
[330356149,1719315037381,-150.0,0.0002077,2]
[330356150,1719315037392,-150.0,0.00020774,2]
[330356151,1719315037403,-150.0,0.00020777,2]
[330356152,1719315037414,-300.0,0.00020787,2]
[330356153,1719315037424,-1500.0,0.00020789,2]
[330356154,1719315037439,-2535.08636121,0.00020789,2]
[330356155,1719315037453,-522.3297664,0.00020789,2]
[330356166,1719315038994,-155.21436452,0.00016199,2]
[330356167,1719315039005,-504.429974,0.00016865,2]
[330356168,1719315039015,-504.429974,0.00019178,2]
[330356169,1719315039026,-504.429974,0.0002,2]
[330356170,1719315039040,-150.0,0.00020702,2]
[330356171,1719315039051,-150.0,0.00020705,2]
[330356172,1719315039061,-150.0,0.00020712,2]
[330356173,1719315039072,-150.0,0.00020735,2]
[330356174,1719315039082,-150.0,0.00020739,2]
[330356175,1719315039094,-150.0,0.00020746,2]
[330356176,1719315039104,-150.0,0.0002075,2]
[330356177,1719315039114,-150.0,0.00020761,2]
[330356178,1719315039124,-150.0,0.00020763,2]
[330356179,1719315039134,-150.0,0.00020764,2]
[330356180,1719315039145,-150.0,0.00020774,2]
[330356181,1719315039155,-150.0,0.00020774,2]
[330356182,1719315039165,-150.0,0.00020787,2]
[330356183,1719315039175,-1341.27804689,0.00020789,2]
[330356184,1719315039188,-1118.8008597,0.00020789,2]
[330356185,1719315039198,-150.0,0.00020794,2]
[330356186,1719315039208,-1196.86292291,0.00020795,2]
[330356187,1719315039221,-2019.13707709,0.00020795,2]
[330356188,1719315039231,-209.45341844,0.00020798,2]
[330356189,1719315039241,-897.35398447,0.00020798,2]
[330356207,1719315043342,-504.429974,0.00016865,2]
[330356208,1719315043353,-504.429974,0.00019178,2]
[330356209,1719315043364,-504.429974,0.0002,2]
[330356210,1719315043374,-504.429974,0.000204,2]
[330356211,1719315043384,-504.429974,0.000204,2]
[330356212,1719315043395,-504.429974,0.00020685,2]
[330356213,1719315043404,-504.429974,0.00020685,2]
[330356214,1719315043414,-150.0,0.00020715,2]
[330356215,1719315043424,-150.0,0.00020744,2]
[330356216,1719315043434,-150.0,0.00020794,2]
[330356217,1719315043444,-240.72756936,0.00020798,2]
[330356218,1719315043876,-1190.269031,0.00020798,2]
[330356221,1719315043890,-735.13477777,0.00020798,2]
[330356223,1719315043900,-367.86522223,0.00020798,2]
[330356269,1719315046314,-242.40737077,0.0002,2]
[330356271,1719315046324,-242.40737077,0.0002,2]
[330356273,1719315046334,-242.40737077,0.0002,2]
[330356275,1719315046344,-1132.13477777,0.00020798,2]
[330356277,1719315046354,-2614.80837037,0.00020798,2]
[330356279,1719315046364,-150.0,0.00020799,2]
[330356281,1719315046374,-151.0,0.000208,2]
[330356283,1719315046383,-1400.0,0.000208,7]
[330356285,1719315046393,-38987.76531621,0.000208,3]
[330356309,1719315046682,-242.40737077,0.0002,2]
[330356310,1719315046693,-3233.0307568,0.000208,3]
[330356311,1719315046705,-737.44275326,0.000208,3]
[330356312,1719315046717,-1065.55614246,0.000208,3]
[330356317,1719315479914,450.15,0.00010175,2]
[330356318,1719315606793,1081.0,0.00025,60]
[330356325,1719316017276,427.64,0.00010175,2]
[330356326,1719316017488,155.000001,0.00025,60]
[330356330,1719316231795,-450.0,0.00011002,2]
[330356331,1719316231805,-190.72236204,0.00011056,2]
[330356335,1719316231861,-2831.55820313,0.00011056,2]
[330356336,1719316231871,-1200.0,0.00011057,2]
[330356337,1719316231880,-150.0,0.00011059,2]
[330356338,1719316231889,-150.0,0.00011059,2]
[330356339,1719316231899,-300.0,0.00011059,2]
[330356340,1719316231908,-5979.58255687,0.0001106,2]
[330356341,1719316231920,-451.92492773,0.0001106,2]
[330356342,1719316231931,-490.54460997,0.0001106,2]
[330356343,1719316231944,-639.61258632,0.0001106,2]
[330356344,1719316231960,-938.21279485,0.0001106,2]
[330356345,1719316232002,-322.91174239,0.0001106,2]
[330356346,1719316232014,-2199.03870347,0.0001106,2]
[330356347,1719316232026,-2005.57355483,0.0001106,2]
[330356348,1719316232068,-1463.45546276,0.0001106,2]
[330356364,1719316237887,-250.88068151,0.00011001,2]
[330356365,1719316237978,-1235.9041344,0.00011001,2]
[330356366,1719316237991,-1214.80253227,0.00011001,2]
[330356367,1719316238104,-2200.0,0.00011001,2]
[330356368,1719316238116,-1681.69718898,0.00011001,2]
[330356373,1719316240230,-2203.4,0.00011001,2]
[330356374,1719316240293,-1228.28225859,0.00011001,2]
[330356375,1719316240474,-5405.59078873,0.00011001,2]
[330356376,1719316240484,-246.63432185,0.00011775,2]
[330356377,1719316240493,-2373.11184045,0.00012091,2]
[330356378,1719316240504,-23900.0,0.00012092,2]
[330356379,1719316240514,-250.0,0.00012092,2]
[330356380,1719316240523,-250.0,0.00012092,2]
[330356381,1719316240533,-1210.46,0.00012092,2]
[330356382,1719316240542,-197.0,0.00012152,2]
[330356383,1719316240552,-150.0,0.00012411,2]
[330356384,1719316240561,-2373.11184045,0.00012432,2]
[330356385,1719316240570,-1248.93094158,0.00012433,2]
[330356386,1719316240579,-427.64,0.00012438,2]